fUSD/lending_fUSD_20260408
["ID","MTS","AMOUNT","RATE_DAILY","PERIOD"]
[420111286,1775685043963,-600.0,0.00011841,2]
[420111287,1775685043973,-195.0,0.00011841,2]
[420111288,1775685043983,-195.0,0.00011841,2]
[420111289,1775685043993,-195.0,0.00011841,2]
[420111290,1775685044004,-195.0,0.00011841,2]
[420111291,1775685044014,-195.0,0.00011841,2]
[420111292,1775685044024,-250.0,0.00011841,2]
[420111293,1775685044034,-8769.80296847,0.00012089,2]
[420111294,1775685044045,-27365.5591906,0.00012089,2]
[420111296,1775685044055,-1680.0,0.00012099,2]
[420111298,1775685044065,-2000.0,0.0001211,2]
[420111299,1775685044075,-255.0,0.00012146,2]
[420111300,1775685044086,-420.0,0.00012166,2]
[420111301,1775685044096,-1500.0,0.00012168,2]
[420111302,1775685044105,-804.24489202,0.00012168,2]
[420111303,1775685044118,-695.75510798,0.00012168,2]
[420111304,1775685044128,-1013.3582935,0.00012168,2]
[420111305,1775685044138,-200.0,0.00012189,2]
[420111306,1775685044147,-354.75,0.00012275,2]
[420111307,1775685044157,-197.44336948,0.00012377,2]
[420111308,1775685044167,-1321.85958709,0.00012633,2]
[420111309,1775685044199,-972.59568653,0.00012633,2]
[420111310,1775685044234,-6475.34769485,0.00012633,2]
[420111311,1775685044244,-8957.67904454,0.00012633,2]
[420111312,1775685044256,-11723.64423464,0.00012633,2]
[420111313,1775685044268,-6684.23591142,0.00012633,2]
[420111315,1775685044278,-1076.04025023,0.00012716,2]
[420111317,1775685044288,-213.60218691,0.00012716,2]
[420111318,1775685044298,-200.0,0.00012737,2]
[420111320,1775685044308,-153.06,0.00012776,2]
[420111322,1775685044318,-172.6814,0.000128,2]
[420111324,1775685044327,-1700.0,0.000129,4]
[420111325,1775685044337,-250.0,0.00013,2]
[420111326,1775685044348,-17183.60539435,0.00013057,2]
[420111327,1775685044357,-1339.59694707,0.00013057,2]
[420111328,1775685044366,-197.44336948,0.00013081,2]
[420111329,1775685044376,-316.26290432,0.00013177,2]
[420111330,1775685044386,-222.11251839,0.00013177,2]
[420111331,1775685044396,-418.26074217,0.00013177,2]
[420111332,1775685044406,-500.0,0.00013177,2]
[420111333,1775685044415,-500.0,0.00013177,2]
[420111334,1775685044424,-500.0,0.00013177,2]
[420111335,1775685044435,-500.0,0.00013177,2]
[420111336,1775685044445,-500.0,0.00013177,2]
[420111337,1775685044455,-294.73540208,0.00013177,2]
[420111338,1775685044466,-500.0,0.00013177,2]
[420111339,1775685044477,-207.28846216,0.00013177,2]
[420111340,1775685044487,-8769.80296847,0.00013178,2]
[420111341,1775685044496,-27365.5591906,0.00013178,2]
[420111342,1775685044506,-1600.0,0.00013196,2]
[420111343,1775685044515,-200.0,0.00013285,2]
[420111344,1775685044524,-433.0,0.000133,2]
[420111345,1775685044534,-2351.0,0.00013309,2]
[420111346,1775685044544,-587.0,0.00013368,2]
[420111347,1775685044554,-2000.0,0.00013455,2]
[420111348,1775685044564,-631.205,0.0001364,2]
[420111349,1775685044573,-1046.0,0.0001364,2]
[420111350,1775685044583,-3524.0,0.0001364,2]
[420111351,1775685044592,-1269.291,0.0001364,2]
[420111352,1775685044602,-926.0,0.0001364,2]
[420111353,1775685044612,-277.201,0.0001364,2]
[420111354,1775685044621,-1217.0,0.0001364,2]
[420111355,1775685044631,-415.0,0.0001364,2]
[420111356,1775685044640,-6022.0,0.0001364,2]
[420111357,1775685044650,-3772.0,0.0001364,2]
[420111358,1775685044660,-500.0,0.00013698,2]
[420111359,1775685044669,-500.0,0.00013698,2]
[420111360,1775685044679,-500.0,0.00013698,2]
[420111361,1775685044688,-500.0,0.00013698,2]
[420111362,1775685044698,-500.0,0.00013698,2]
[420111363,1775685044707,-500.0,0.00013698,2]
[420111364,1775685044717,-500.0,0.00013698,2]
[420111365,1775685044726,-500.0,0.00013698,2]
[420111366,1775685044735,-500.0,0.00013698,2]
[420111367,1775685044745,-500.0,0.00013698,2]
[420111368,1775685044754,-500.0,0.00013698,2]
[420111369,1775685044763,-500.0,0.00013698,2]
[420111370,1775685044773,-500.0,0.00013698,2]
[420111371,1775685044783,-500.0,0.00013698,2]
[420111372,1775685044793,-500.0,0.00013698,2]
[420111373,1775685044802,-500.0,0.00013698,2]
[420111374,1775685044811,-500.0,0.00013698,2]
[420111375,1775685044821,-500.0,0.00013698,2]
[420111376,1775685044830,-500.0,0.00013698,2]
[420111377,1775685044839,-504.74596653,0.00013698,2]
[420111378,1775685044849,-500.0,0.00013698,2]
[420111379,1775685044859,-500.0,0.00013698,2]
[420111380,1775685044868,-500.0,0.00013698,2]
[420111381,1775685044878,-500.0,0.00013698,2]
[420111382,1775685044887,-500.0,0.00013698,2]
[420111383,1775685044897,-500.0,0.00013698,2]
[420111384,1775685044906,-500.0,0.00013698,2]
[420111385,1775685044915,-500.0,0.00013698,2]
[420111386,1775685044924,-500.0,0.00013698,2]
[420111387,1775685044934,-500.0,0.00013698,2]
[420111388,1775685044944,-500.0,0.00013698,2]
[420111389,1775685044953,-500.0,0.00013698,2]
[420111390,1775685044963,-500.0,0.00013698,2]
[420111391,1775685044974,-500.0,0.00013698,2]
[420111392,1775685044985,-500.0,0.00013698,2]
[420111393,1775685044995,-615.24875447,0.00013698,2]
[420111394,1775685045006,-500.0,0.00013698,2]
[420111395,1775685045015,-500.0,0.00013698,2]
[420111396,1775685045025,-500.0,0.00013698,2]
[420111397,1775685045034,-323.69736377,0.00013698,2]
[420111398,1775685045043,-500.0,0.00013698,2]
[420111399,1775685045053,-500.0,0.00013698,2]
[420111400,1775685045063,-500.0,0.00013698,2]
[420111401,1775685045072,-500.0,0.00013698,2]
[420111402,1775685045082,-500.0,0.00013698,2]
[420111403,1775685045092,-500.0,0.00013698,2]
[420111404,1775685045101,-500.0,0.00013698,2]
[420111405,1775685045111,-500.0,0.00013698,2]
[420111406,1775685045120,-500.0,0.00013698,2]
[420111407,1775685045130,-500.0,0.00013698,2]
[420111408,1775685045139,-500.0,0.00013698,2]
[420111409,1775685045149,-500.0,0.00013698,2]
[420111410,1775685045158,-500.0,0.00013698,2]
[420111411,1775685045168,-500.0,0.00013698,2]
[420111412,1775685045179,-500.0,0.00013698,2]
[420111413,1775685045188,-500.0,0.00013698,2]
[420111414,1775685045198,-500.0,0.00013698,2]
[420111415,1775685045208,-500.0,0.00013698,2]
[420111416,1775685045218,-500.0,0.00013698,2]
[420111417,1775685045227,-500.0,0.00013698,2]
[420111418,1775685045237,-500.0,0.00013698,2]
[420111419,1775685045246,-500.0,0.00013698,2]
[420111420,1775685045256,-500.0,0.00013698,2]
[420111421,1775685045266,-500.0,0.00013698,2]
[420111422,1775685045277,-500.0,0.00013698,2]
[420111423,1775685045286,-500.0,0.00013698,2]
[420111424,1775685045296,-500.0,0.00013698,2]
[420111425,1775685045305,-500.0,0.00013698,2]
[420111426,1775685045315,-500.0,0.00013698,2]
[420111427,1775685045325,-500.0,0.00013698,2]
[420111428,1775685045335,-500.0,0.00013698,2]
[420111429,1775685045345,-500.0,0.00013698,2]
[420111430,1775685045354,-500.0,0.00013698,2]
[420111431,1775685045364,-500.0,0.00013698,2]
[420111432,1775685045374,-500.0,0.00013698,2]
[420111433,1775685045383,-500.0,0.00013698,2]
[420111434,1775685045393,-500.0,0.00013698,2]
[420111435,1775685045403,-500.0,0.00013698,2]
[420111436,1775685045413,-500.0,0.00013698,2]
[420111437,1775685045422,-500.0,0.00013698,2]
[420111438,1775685045432,-500.0,0.00013698,2]
[420111439,1775685045442,-500.0,0.00013698,2]
[420111440,1775685045452,-500.0,0.00013698,2]
[420111441,1775685045461,-500.0,0.00013698,2]
[420111442,1775685045470,-500.0,0.00013698,2]
[420111443,1775685045480,-500.0,0.00013698,2]
[420111444,1775685045490,-500.0,0.00013698,2]
[420111445,1775685045499,-500.0,0.00013698,2]
[420111446,1775685045508,-500.0,0.00013698,2]
[420111447,1775685045517,-500.0,0.00013698,2]
[420111448,1775685045527,-500.0,0.00013698,2]
[420111449,1775685045537,-500.0,0.00013698,2]
[420111450,1775685045546,-500.0,0.00013698,2]
[420111451,1775685045556,-500.0,0.00013698,2]
[420111452,1775685045566,-500.0,0.00013698,2]
[420111453,1775685045576,-500.0,0.00013698,2]
[420111454,1775685045585,-500.0,0.00013698,2]
[420111455,1775685045595,-500.0,0.00013698,2]
[420111456,1775685045605,-500.0,0.00013698,2]
[420111457,1775685045615,-553.39225555,0.00013698,2]
[420111458,1775685045625,-500.0,0.00013698,2]
[420111459,1775685045637,-500.0,0.00013698,2]
[420111460,1775685045646,-500.0,0.00013698,2]
[420111461,1775685045656,-500.0,0.00013698,2]
[420111462,1775685045666,-500.0,0.00013698,2]
[420111463,1775685045676,-500.0,0.00013698,2]
[420111464,1775685045686,-500.0,0.00013698,2]
[420111465,1775685045696,-500.0,0.00013698,2]
[420111466,1775685045705,-500.0,0.00013698,2]
[420111467,1775685045715,-500.0,0.00013698,2]
[420111468,1775685045724,-500.0,0.00013698,2]
[420111469,1775685045734,-500.0,0.00013698,2]
[420111470,1775685045744,-500.0,0.00013698,2]
[420111471,1775685045753,-500.0,0.00013698,2]
[420111472,1775685045763,-500.0,0.00013698,2]
[420111473,1775685045772,-219.34257269,0.00013698,2]
[420111474,1775685045782,-500.0,0.00013698,2]
[420111475,1775685045792,-500.0,0.00013698,2]
[420111476,1775685045802,-500.0,0.00013698,2]
[420111477,1775685045811,-500.0,0.00013698,2]
[420111478,1775685045820,-500.0,0.00013698,2]
[420111479,1775685045830,-500.0,0.00013698,2]
[420111480,1775685045839,-500.0,0.00013698,2]
[420111481,1775685045849,-500.0,0.00013698,2]
[420111482,1775685045859,-500.0,0.00013698,2]
[420111483,1775685045869,-500.0,0.00013698,2]
[420111484,1775685045879,-500.0,0.00013698,2]
[420111485,1775685045888,-500.03954585,0.00013698,2]
[420111486,1775685045898,-500.0,0.00013698,2]
[420111487,1775685045908,-500.0,0.00013698,2]
[420111488,1775685045917,-500.0,0.00013698,2]
[420111489,1775685045926,-454.40497159,0.00013698,2]
[420111490,1775685045936,-500.0,0.00013698,2]
[420111491,1775685045945,-500.0,0.00013698,2]
[420111492,1775685045955,-500.0,0.00013698,2]
[420111493,1775685045964,-500.0,0.00013698,2]
[420111494,1775685045974,-500.0,0.00013698,2]
[420111495,1775685045984,-500.0,0.00013698,2]
[420111496,1775685045994,-500.0,0.00013698,2]
[420111497,1775685046004,-500.0,0.00013698,2]
[420111498,1775685046013,-500.0,0.00013698,2]
[420111499,1775685046023,-500.0,0.00013698,2]
[420111500,1775685046032,-500.0,0.00013698,2]
[420111501,1775685046042,-500.0,0.00013698,2]
[420111502,1775685046053,-500.0,0.00013698,2]
[420111503,1775685046063,-500.0,0.00013698,2]
[420111504,1775685046071,-500.0,0.00013698,2]
[420111505,1775685046081,-778.73,0.00013698,2]
[420111506,1775685046091,-500.0,0.00013698,2]
[420111507,1775685046100,-500.0,0.00013698,2]
[420111508,1775685046109,-500.0,0.00013698,2]
[420111509,1775685046119,-500.0,0.00013698,2]
[420111510,1775685046128,-500.0,0.00013698,2]
[420111511,1775685046138,-500.0,0.00013698,2]
[420111512,1775685046147,-500.0,0.00013698,2]
[420111513,1775685046157,-500.0,0.00013698,2]
[420111514,1775685046167,-500.0,0.00013698,2]
[420111515,1775685046176,-500.0,0.00013698,2]
[420111516,1775685046186,-500.0,0.00013698,2]
[420111517,1775685046195,-500.0,0.00013698,2]
[420111518,1775685046205,-500.0,0.00013698,2]
[420111519,1775685046214,-500.0,0.00013698,2]
[420111521,1775685046224,-500.0,0.00013698,2]
[420111522,1775685046234,-500.0,0.00013698,2]
[420111524,1775685046243,-500.0,0.00013698,2]
[420111525,1775685046253,-500.0,0.00013698,2]
[420111526,1775685046262,-500.0,0.00013698,2]
[420111527,1775685046272,-500.0,0.00013698,2]
[420111528,1775685046281,-500.0,0.00013698,2]
[420111529,1775685046291,-500.0,0.00013698,2]
[420111530,1775685046300,-500.0,0.00013698,2]
[420111531,1775685046309,-500.0,0.00013698,2]
[420111532,1775685046319,-500.0,0.00013698,2]
[420111533,1775685046328,-500.0,0.00013698,2]
[420111534,1775685046338,-500.0,0.00013698,2]
[420111535,1775685046347,-500.0,0.00013698,2]
[420111536,1775685046357,-500.0,0.00013698,2]
[420111537,1775685046367,-514.41880912,0.00013698,2]
[420111538,1775685046377,-2138.0,0.00013699,2]
[420111539,1775685046387,-150.0,0.00013699,2]
[420111540,1775685046397,-150.0,0.00013699,2]
[420111541,1775685046407,-150.0,0.00013699,2]
[420111542,1775685046416,-150.0,0.00013699,2]
[420111543,1775685046426,-150.0,0.00013699,2]
[420111544,1775685046435,-150.0,0.00013699,2]
[420111545,1775685046445,-521.18,0.00013699,2]
[420111546,1775685046455,-200.0,0.00013699,2]
[420111547,1775685046464,-166.66,0.00013699,2]
[420111548,1775685046474,-152.3,0.00013699,2]
[420111549,1775685046484,-350.72964164,0.00013699,2]
[420111550,1775685046493,-878.67,0.000137,2]
[420111551,1775685046503,-878.67,0.00013712,2]
[420111552,1775685046512,-8769.80296847,0.00013722,2]
[420111553,1775685046522,-27365.5591906,0.00013722,2]
[420111554,1775685046532,-150.0,0.00013751,2]
[420111555,1775685046542,-500.0,0.00013777,2]
[420111556,1775685046552,-500.0,0.00013777,2]
[420111557,1775685046562,-500.0,0.00013777,2]
[420111558,1775685046572,-500.0,0.00013777,2]
[420111559,1775685046581,-168.19090078,0.00013777,2]
[420111560,1775685046591,-500.0,0.00013777,2]
[420111561,1775685046601,-197.44336948,0.00013786,2]
[420111562,1775685046611,-220.566361,0.00013833,2]
[420111563,1775685046620,-166.66,0.00013836,2]
[420111564,1775685046630,-153.06,0.0001384,2]
[420111565,1775685046640,-7591.89,0.00013848,2]
[420111566,1775685046650,-166.66,0.0001388,2]
[420111567,1775685046659,-2835.5,0.00013929,2]
[420111568,1775685046669,-2835.5,0.00013929,2]
[420111569,1775685046678,-2835.5,0.00013929,2]
[420111570,1775685046688,-2835.5,0.00013929,2]
[420111571,1775685046698,-2835.5,0.00013929,2]
[420111572,1775685046708,-778.73,0.00013972,2]
[420111573,1775685046718,-150.0,0.00013973,2]
[420111574,1775685046728,-150.0,0.00013973,2]
[420111575,1775685046738,-150.0,0.00013973,2]
[420111576,1775685046748,-150.0,0.00013973,2]
[420111577,1775685046757,-150.0,0.00013973,2]
[420111578,1775685046767,-166.66,0.00013973,2]
[420111579,1775685046776,-198.7924,0.000141,2]
[420111580,1775685046786,-166.66,0.0001411,2]
[420111581,1775685046796,-292.34,0.00014195,2]
[420111582,1775685046806,-250.0,0.00014223,2]
[420111583,1775685046815,-778.73,0.00014246,2]
[420111584,1775685046825,-166.66,0.00014247,2]
[420111585,1775685046834,-150.0,0.00014247,2]
[420111586,1775685046843,-150.0,0.00014247,2]
[420111587,1775685046852,-150.0,0.00014247,2]
[420111588,1775685046862,-150.0,0.00014247,2]
[420111589,1775685046872,-878.67,0.00014257,2]
[420111590,1775685046882,-8769.80296847,0.00014267,2]
[420111591,1775685046891,-27365.5591906,0.00014267,2]
[420111592,1775685046901,-166.66,0.00014338,2]
[420111593,1775685046910,-166.66,0.00014384,2]
[420111594,1775685046920,-162.0,0.000144,2]
[420111595,1775685046929,-1573.0,0.000144,2]
[420111596,1775685046939,-292.34,0.00014407,2]
[420111597,1775685046949,-330.648766,0.00014426,7]
[420111598,1775685046958,-197.44336948,0.00014491,2]
[420111599,1775685046968,-161.391852,0.00014505,7]
[420111600,1775685046978,-160.0,0.00014505,2]
[420111601,1775685046988,-693.43257,0.00014505,2]
[420111626,1775685047324,-1226.86514,0.00014505,2]
[420111628,1775685047334,-160.0,0.00014515,2]
[420111630,1775685047344,-160.0,0.00014515,7]
[420111632,1775685047354,-326.233718,0.00014515,2]
[420111634,1775685047364,-492.467437,0.00014515,2]
[420111636,1775685047374,-1622.455429,0.00014515,7]
[420111638,1775685047384,-3084.910858,0.00014515,7]
[420111639,1775685047393,-208.044184,0.00014515,7]
[420111641,1775685047404,-160.0,0.00014515,7]
[420111643,1775685047413,-2003.136513,0.00014515,7]
[420111645,1775685047424,-3846.273026,0.00014515,7]
[420111647,1775685047433,-534.83,0.00014515,2]
[420111649,1775685047444,-800.0,0.00014519,2]
[420111651,1775685047454,-269.66,0.00014519,2]
[420111653,1775685047464,-778.73,0.0001452,2]
[420111655,1775685047474,-534.83,0.00014523,2]
[420111657,1775685047484,-475.76,0.00014535,2]
[420111659,1775685047494,-736.0,0.00014564,2]
[420111661,1775685047505,-292.34,0.00014618,2]
[420111663,1775685047515,-3292.0,0.0001464,2]
[420111665,1775685047525,-1600.0,0.00014662,2]
[420111666,1775685047534,-164.0,0.00014689,2]
[420111668,1775685047544,-1573.0,0.0001472,2]
[420111670,1775685047554,-778.73,0.00014794,2]
[420111672,1775685047564,-166.66,0.00014796,2]
[420111674,1775685047574,-2000.0,0.00014801,2]
[420111676,1775685047584,-878.67,0.00014801,2]
[420111678,1775685047594,-8769.80296847,0.00014811,2]
[420111680,1775685047604,-27365.5591906,0.00014811,2]
[420111682,1775685047614,-500.0,0.00014824,2]
[420111684,1775685047624,-2000.0,0.00014824,2]
[420111686,1775685047634,-292.34,0.0001483,2]
[420111688,1775685047643,-160.0,0.00014843,2]
[420111690,1775685047654,-153.06,0.00014905,2]
[420111692,1775685047663,-601.3376128,0.00014985,2]
[420111694,1775685047673,-500.0,0.00014985,2]
[420111696,1775685047683,-200.0,0.00014985,2]
[420111697,1775685047692,-578.20924308,0.00014985,2]
[420111699,1775685047702,-174.61919141,0.00014985,2]
[420111701,1775685047713,-1191.11104075,0.00014985,2]
[420111703,1775685047723,-160.62835242,0.00014985,2]
[420111705,1775685047733,-174.61919141,0.00014985,2]
[420111707,1775685047743,-743.50770149,0.00014985,2]
[420111709,1775685047753,-151.0,0.00014985,2]
[420111711,1775685047763,-181.0801015,0.00014985,2]
[420111713,1775685047772,-300.0,0.00015,2]
[420111714,1775685047782,-160.0,0.00015,2]
[420111716,1775685047792,-500.0,0.0001503,2]
[420111718,1775685047802,-500.0,0.0001503,2]
[420111720,1775685047812,-500.0,0.0001504,2]
[420111722,1775685047822,-292.34,0.00015042,2]
[420111724,1775685047832,-778.73,0.00015068,2]
[420111726,1775685047842,-155.0,0.0001516,2]
[420111728,1775685047852,-208.37237059,0.00015161,2]
[420111730,1775685047862,-500.0,0.00015161,2]
[420111732,1775685047872,-500.0,0.00015161,2]
[420111734,1775685047883,-500.0,0.00015161,2]
[420111736,1775685047893,-500.0,0.00015161,2]
[420111738,1775685047904,-150.0,0.00015161,2]
[420111740,1775685047913,-500.0,0.00015161,2]
[420111742,1775685047922,-150.0,0.00015161,2]
[420111743,1775685047931,-500.0,0.00015161,2]
[420111745,1775685047942,-150.0,0.00015161,2]
[420111747,1775685047951,-500.0,0.00015161,2]
[420111749,1775685047961,-595.10163207,0.00015161,2]
[420111751,1775685047970,-182.15202066,0.00015161,2]
[420111753,1775685047980,-150.0,0.00015161,2]
[420111755,1775685047990,-150.0,0.00015161,2]
[420111757,1775685047999,-256.56798922,0.00015161,2]
[420111759,1775685048009,-500.0,0.00015161,2]
[420111760,1775685048018,-500.0,0.00015161,2]
[420111762,1775685048027,-500.0,0.00015161,2]
[420111764,1775685048037,-500.0,0.00015161,2]
[420111765,1775685048047,-500.0,0.00015161,2]
[420111766,1775685048057,-500.0,0.00015161,2]
[420111767,1775685048066,-500.0,0.00015161,2]
[420111768,1775685048076,-500.0,0.00015161,2]
[420111769,1775685048086,-287.13980161,0.00015161,2]
[420111770,1775685048096,-500.0,0.00015161,2]
[420111771,1775685048106,-500.0,0.00015161,2]
[420111772,1775685048116,-165.86332065,0.00015161,2]
[420111773,1775685048126,-500.0,0.00015161,2]
[420111774,1775685048135,-500.0,0.00015161,2]
[420111775,1775685048145,-500.0,0.00015161,2]
[420111776,1775685048156,-500.0,0.00015161,2]
[420111777,1775685048166,-500.0,0.00015161,2]
[420111778,1775685048175,-500.0,0.00015161,2]
[420111779,1775685048185,-399.40597196,0.00015161,2]
[420111780,1775685048196,-500.0,0.00015161,2]
[420111781,1775685048207,-339.81765262,0.00015161,2]
[420111782,1775685048217,-500.0,0.00015161,2]
[420111783,1775685048226,-388.39476597,0.00015161,2]
[420111784,1775685048235,-500.0,0.00015161,2]
[420111785,1775685048245,-500.0,0.00015161,2]
[420111786,1775685048255,-500.0,0.00015161,2]
[420111787,1775685048264,-500.0,0.00015161,2]
[420111788,1775685048274,-500.0,0.00015161,2]
[420111789,1775685048284,-500.0,0.00015161,2]
[420111790,1775685048294,-500.0,0.00015161,2]
[420111791,1775685048303,-341.376807,0.00015161,2]
[420111792,1775685048314,-197.44336948,0.00015195,2]
[420111793,1775685048324,-3449.0,0.000152,2]
[420111794,1775685048333,-945.589868,0.0001523,2]
[420111795,1775685048342,-667.296242,0.00015241,2]
[420111796,1775685048352,-2212.439221,0.00015241,7]
[420111797,1775685048362,-2731.54979,0.00015241,7]
[420111798,1775685048371,-11846.04526511,0.00015246,2]
[420111799,1775685048381,-292.34,0.00015253,2]
[420111800,1775685048391,-166.66,0.00015254,2]
[420111801,1775685048400,-2600.0,0.000153,5]
[420111802,1775685048410,-311.81388464,0.000153,2]
[420111803,1775685048420,-543.0,0.00015314,5]
[420111804,1775685048430,-778.73,0.00015342,2]
[420111805,1775685048439,-878.67,0.00015346,2]
[420111806,1775685048449,-8769.80296847,0.00015356,2]
[420111807,1775685048459,-27365.5591906,0.00015356,2]
[420111808,1775685048468,-162.0,0.0001536,2]
[420111809,1775685048477,-228.8517,0.000154,2]
[420111810,1775685048487,-3500.0,0.000154,5]
[420111811,1775685048497,-201.16710883,0.00015436,2]
[420111812,1775685048507,-150.88467267,0.00015436,2]
[420111813,1775685048517,-150.0,0.00015436,2]
[420111814,1775685048527,-150.0,0.00015436,2]
[420111815,1775685048536,-150.0,0.00015436,2]
[420111816,1775685048546,-150.0,0.00015436,2]
[420111817,1775685048556,-286.3666211,0.00015436,2]
[420111818,1775685048565,-610.0,0.00015436,2]
[420111819,1775685048575,-610.0,0.00015436,2]
[420111820,1775685048585,-610.0,0.00015436,2]
[420111821,1775685048594,-610.0,0.00015436,2]
[420111822,1775685048604,-610.0,0.00015436,2]
[420111823,1775685048613,-610.0,0.00015436,2]
[420111824,1775685048623,-610.0,0.00015436,2]
[420111825,1775685048632,-610.0,0.00015436,2]
[420111826,1775685048642,-610.0,0.00015436,2]
[420111827,1775685048652,-610.0,0.00015436,2]
[420111828,1775685048661,-610.0,0.00015436,2]
[420111829,1775685048672,-610.0,0.00015436,2]
[420111830,1775685048682,-610.0,0.00015436,2]
[420111831,1775685048691,-610.0,0.00015436,2]
[420111832,1775685048701,-610.0,0.00015436,2]
[420111833,1775685048711,-610.0,0.00015436,2]
[420111834,1775685048721,-610.0,0.00015436,2]
[420111835,1775685048730,-610.0,0.00015436,2]
[420111836,1775685048739,-610.0,0.00015436,2]
[420111837,1775685048748,-500.0,0.00015436,2]
[420111838,1775685048758,-520.29151548,0.00015436,2]
[420111839,1775685048767,-500.0,0.00015436,2]
[420111840,1775685048777,-500.0,0.00015436,2]
[420111841,1775685048787,-610.0,0.00015436,2]
[420111842,1775685048796,-500.0,0.00015436,2]
[420111843,1775685048806,-500.0,0.00015436,2]
[420111844,1775685048815,-152.12238144,0.00015436,2]
[420111845,1775685048825,-150.0,0.00015436,2]
[420111846,1775685048834,-610.0,0.00015436,2]
[420111847,1775685048844,-150.0,0.00015436,2]
[420111848,1775685048854,-200.0,0.00015436,2]
[420111849,1775685048863,-500.0,0.00015436,2]
[420111850,1775685048873,-500.0,0.00015436,2]
[420111851,1775685048882,-500.0,0.00015436,2]
[420111852,1775685048891,-500.0,0.00015436,2]
[420111853,1775685048901,-500.0,0.00015436,2]
[420111854,1775685048910,-500.0,0.00015436,2]
[420111855,1775685048920,-345.51138736,0.00015436,2]
[420111856,1775685048930,-610.0,0.00015436,2]
[420111857,1775685048940,-160.5097946,0.00015436,2]
[420111858,1775685048949,-610.0,0.00015436,2]
[420111859,1775685048959,-150.0,0.00015436,2]
[420111860,1775685048968,-150.0,0.00015436,2]
[420111861,1775685048977,-150.0,0.00015436,2]
[420111862,1775685048988,-150.0,0.00015436,2]
[420111863,1775685048997,-150.0,0.00015436,2]
[420111864,1775685049007,-176.0009961,0.00015436,2]
[420111865,1775685049016,-621.0,0.00015436,2]
[420111866,1775685049025,-500.0,0.00015436,2]
[420111867,1775685049035,-500.0,0.00015436,2]
[420111868,1775685049044,-500.0,0.00015436,2]
[420111869,1775685049054,-274.1065221,0.00015436,2]
[420111870,1775685049063,-500.0,0.00015436,2]
[420111871,1775685049073,-500.0,0.00015436,2]
[420111872,1775685049082,-500.0,0.00015436,2]
[420111873,1775685049092,-500.0,0.00015436,2]
[420111874,1775685049101,-500.0,0.00015436,2]
[420111875,1775685049110,-500.0,0.00015436,2]
[420111876,1775685049120,-500.0,0.00015436,2]
[420111877,1775685049129,-500.0,0.00015436,2]
[420111878,1775685049141,-500.0,0.00015436,2]
[420111879,1775685049151,-500.0,0.00015436,2]
[420111880,1775685049161,-500.0,0.00015436,2]
[420111881,1775685049171,-500.0,0.00015436,2]
[420111882,1775685049181,-500.0,0.00015436,2]
[420111883,1775685049191,-500.0,0.00015436,2]
[420111884,1775685049201,-272.94970253,0.00015436,2]